bitfinex/quotes_SOLUSD_20251106
["timestamp","ask_amount","ask_price","bid_price","bid_amount"]
[1762411884780,0.66,159.57,159.53,12.60567313]
[1762411885005,50.0,159.58,159.54,0.67]
[1762411885301,56.93654905,159.58,159.54,6.33740974]
[1762411885601,56.93654905,159.58,159.54,0.67]
[1762411886313,0.67,159.57,159.53,11.93567313]
[1762411886534,50.0,159.51,159.46,12.80856423]
[1762411887122,50.67,159.51,159.47,0.67]
[1762411887517,56.33740974,159.51,159.47,0.67]
[1762411887926,6.26959247,159.5,159.47,0.67]
[1762411888224,56.9392047,159.51,159.47,0.67]
[1762411889024,62.60661444,159.51,159.47,0.67]
[1762411891520,5.66740974,159.48,159.46,0.2]
[1762411892005,70.592,159.53,159.47,6.33740974]
[1762411892219,70.592,159.53,159.46,6.47114115]
[1762411892220,0.67,159.52,159.46,12.13855089]
[1762411892396,55.66740974,159.51,159.46,0.2]
[1762411892597,55.66740974,159.51,159.46,7.14108246]
[1762411892823,50.67,159.51,159.46,7.14108246]
[1762411893019,50.67,159.51,159.47,0.67]
[1762411893528,50.67,159.51,159.47,6.9405655]
[1762411895216,50.67,159.51,159.47,9.11808509]
[1762411895636,20.592,159.53,159.49,2.17751959]
[1762411896002,20.592,159.53,159.49,2.84751959]
[1762411896219,21.262,159.53,159.49,2.84751959]
[1762411897602,21.262,159.53,159.49,64.84751959]
[1762411898002,27.53043177,159.53,159.49,64.84751959]
[1762411898531,29.70795136,159.53,159.49,62.67]
[1762411899914,0.67,159.52,159.49,62.67]
[1762411900930,20.592,159.53,159.49,68.93983157]
[1762411901113,20.592,159.53,159.5,2.86751959]
[1762411901322,50.0,159.54,159.5,64.86751959]
[1762411901519,50.47984279,159.73,159.5,64.86751959]
[1762411901520,100.67,159.58,159.53,2.17751959]
[1762411901831,50.67,159.58,159.53,2.17751959]
[1762411902029,50.67,159.57,159.52,2.17751959]
[1762411902332,52.84751959,159.57,159.52,2.17751959]
[1762411902507,0.67,159.56,159.52,2.86751959]
[1762411902935,52.84751959,159.56,159.5,0.69]
[1762411903112,52.84751959,159.56,159.5,2.86751959]
[1762411903113,2.17751959,159.55,159.5,2.86751959]
[1762411903314,0.67,159.55,159.5,2.86751959]
[1762411903512,0.67,159.55,159.51,0.69]
[1762411903727,2.84751959,159.55,159.51,0.69]
[1762411904126,6.26802055,159.54,159.51,0.69]
[1762411904630,50.0,159.56,159.51,0.69]
[1762411904806,50.0,159.56,159.52,2.17751959]
[1762411905237,50.67,159.56,159.52,2.86751959]
[1762411906230,0.67,159.56,159.53,2.86751959]
[1762411906433,21.262,159.57,159.53,2.86751959]
[1762411906731,52.17751959,159.58,159.55,2.17751959]
[1762411906732,50.0,159.58,159.55,2.17751959]
[1762411906940,50.67,159.58,159.55,62.0]
[1762411907315,50.67,159.63,159.57,2.17751959]
[1762411907533,50.67,159.63,159.59,2.17751959]
[1762411907719,71.262,159.63,159.59,2.17751959]
[1762411907928,0.67,159.62,159.59,2.17751959]
[1762411908217,0.67,159.62,159.58,9.13386166]
[1762411909632,52.17751959,159.61,159.55,2.17751959]
[1762411910144,52.84751959,159.61,159.56,0.69]
[1762411910518,52.17751959,159.61,159.56,2.86751959]
[1762411910731,0.67,159.6,159.56,9.13467166]
[1762411911038,0.67,159.6,159.56,9.13469823]
[1762411912239,6.93568858,159.6,159.56,2.86751959]
[1762411912458,2.17751959,159.59,159.54,8.44525986]
[1762411912644,2.89751959,159.59,159.54,70.44525986]
[1762411912960,2.17751959,159.56,159.53,62.0]
[1762411913317,2.17751959,159.55,159.53,62.0]
[1762411913531,2.89751959,159.54,159.51,0.68]
[1762411913734,2.17751959,159.55,159.51,0.68]
[1762411913940,0.72,159.55,159.51,0.68]
[1762411914125,52.17751959,159.56,159.51,0.68]
[1762411914444,62.65522679,159.56,159.51,6.94907148]
[1762411914939,0.72,159.55,159.51,6.94907148]
[1762411916045,0.72,159.55,159.51,0.68]
[1762411916219,6.38798659,159.55,159.49,68.34798659]
[1762411916420,12.65589742,159.55,159.49,74.61789665]
[1762411916631,61.93526399,159.56,159.5,6.34798659]
[1762411916836,62.65526399,159.56,159.5,6.34798659]
[1762411917122,0.72,159.55,159.5,6.34798659]
[1762411917426,6.38798659,159.55,159.5,0.68]
[1762411918144,0.72,159.54,159.5,0.68]
[1762411918329,0.72,159.54,159.5,6.94941413]
[1762411919423,12.65603212,159.54,159.5,0.68]
[1762411920634,55.66798659,159.51,159.46,62.2]
[1762411920844,5.66798659,159.48,159.46,0.2]
[1762411921245,6.38798659,159.47,159.46,0.2]
[1762411921444,0.72,159.47,159.46,0.2]
[1762411921744,5.66798659,159.48,159.46,0.2]
[1762411921943,6.38798659,159.48,159.46,0.2]
[1762411922340,8.68803478,159.48,159.46,0.2]
[1762411922735,50.0,159.52,159.47,8.64803478]
[1762411923043,50.0,159.54,159.49,7.96803478]
[1762411923222,8.68803478,159.53,159.48,0.68]
[1762411924022,8.68803478,159.53,159.48,14.91802552]
[1762411924225,50.0,159.54,159.49,7.96803478]
[1762411924443,50.0,159.54,159.5,0.68]
[1762411924651,50.72,159.54,159.5,0.68]
[1762411925171,0.72,159.53,159.49,7.96803478]
[1762411925343,0.72,159.53,159.48,14.23802552]
[1762411925534,50.0,159.54,159.5,7.96803478]
[1762411926030,50.72,159.54,159.5,8.64803478]
[1762411926224,50.72,159.54,159.5,14.91755596]
[1762411927053,50.72,159.54,159.5,76.91755596]
[1762411928447,56.26813011,159.54,159.5,70.64803478]
[1762411928651,0.72,159.53,159.5,62.0]
[1762411930269,50.72,159.53,159.5,62.0]
[1762411930437,0.72,159.53,159.5,62.0]
[1762411931039,0.72,159.53,159.5,76.23758235]
[1762411931271,0.72,159.53,159.5,69.96803478]
[1762411931474,6.98843372,159.53,159.5,62.0]
[1762411932359,0.72,159.53,159.5,62.0]
[1762411932987,0.72,159.53,159.5,69.96803478]
[1762411933593,57.96803478,159.51,159.5,62.0]
[1762411933957,20.592,159.52,159.47,7.96803478]
[1762411934254,21.312,159.52,159.48,8.64803478]
[1762411934686,27.58082178,159.52,159.48,0.68]
[1762411934862,27.58082178,159.52,159.48,6.95032604]
[1762411935065,21.312,159.52,159.48,6.95032604]
[1762411935384,20.592,159.52,159.48,14.23836082]
[1762411935551,20.592,159.52,159.49,0.68]
[1762411936092,27.58082871,159.52,159.47,14.23874201]
[1762411936258,0.72,159.51,159.47,0.68]
[1762411937087,0.72,159.51,159.47,6.9506525]
[1762411938101,0.72,159.51,159.46,3.60252449]
[1762411938102,50.0,159.5,159.46,0.2]
[1762411938387,53.40252449,159.5,159.46,0.2]
[1762411938559,0.72,159.49,159.46,0.2]
[1762411939489,10.39263527,159.49,159.46,0.2]
[1762411939995,6.99011078,159.49,159.46,0.2]
[1762411941172,59.67263527,159.49,159.46,0.2]
[1762411941384,10.39263527,159.49,159.46,0.2]
[1762411941568,6.99011078,159.49,159.46,0.2]
[1762411942277,56.2680589,159.54,159.48,3.40252449]
[1762411942575,56.2680589,159.54,159.5,3.40252449]
[1762411942576,50.0,159.54,159.5,3.40252449]
[1762411943091,50.68,159.54,159.5,0.69]
[1762411943294,56.9481059,159.54,159.5,4.09252449]
[1762411943659,50.68,159.54,159.5,10.36206723]
[1762411944088,50.0,159.54,159.5,71.67206723]
[1762411944290,50.68,159.57,159.52,3.40252449]
[1762411944688,0.68,159.56,159.52,4.09252449]
[1762411944895,53.40252449,159.54,159.49,6.26995579]
[1762411945075,53.40252449,159.54,159.49,3.40252449]
[1762411945269,50.0,159.54,159.5,4.09252449]
[1762411945688,50.0,159.54,159.51,0.69]
[1762411946382,50.68,159.54,159.51,0.69]
[1762411946803,50.68,159.54,159.51,4.09252449]
[1762411947009,50.68,159.54,159.51,0.69]
[1762411947808,50.0,159.54,159.51,4.09252449]
[1762411948374,56.26811666,159.54,159.5,3.40252449]
[1762411948614,56.26811666,159.54,159.49,3.40252449]
[1762411948615,0.68,159.53,159.49,3.40252449]
[1762411948986,50.0,159.54,159.5,4.09252449]
[1762411949326,50.0,159.54,159.51,3.40252449]
[1762411949478,50.0,159.54,159.51,4.09252449]
[1762411949679,50.68,159.56,159.52,3.40252449]
[1762411949892,0.68,159.55,159.52,3.40252449]
[1762411950705,0.68,159.55,159.51,10.36156206]
[1762411951407,0.68,159.55,159.52,0.69]
[1762411951886,0.68,159.55,159.51,9.67156206]
[1762411952081,60.35024248,159.55,159.5,68.2694979]
[1762411952298,60.35024248,159.55,159.5,68.9594979]
[1762411952490,4.08252449,159.54,159.5,62.0]
[1762411952691,3.40252449,159.53,159.5,62.0]
[1762411952898,4.08252449,159.53,159.5,62.0]
[1762411953213,3.40252449,159.51,159.46,3.60252449]
[1762411953505,3.40252449,159.51,159.46,9.87358785]
[1762411953711,54.08252449,159.52,159.47,4.09252449]
[1762411954005,60.35149672,159.52,159.47,4.09252449]
[1762411954207,60.35149672,159.52,159.47,0.69]
[1762411954704,0.68,159.51,159.47,62.69]
[1762411955116,0.68,159.51,159.47,68.96077171]
[1762411957210,0.68,159.51,159.47,72.3632962]
[1762411959915,50.0,159.52,159.48,0.68]
[1762411960089,76.860124,159.54,159.5,3.40252449]
[1762411960424,53.40252449,159.52,159.48,0.68]
[1762411960792,54.07252449,159.52,159.48,0.68]
[1762411961203,60.34159353,159.52,159.48,0.68]
[1762411961998,4.07252449,159.51,159.47,62.0]
[1762411962421,4.07252449,159.51,159.47,62.68]
[1762411963123,10.34206443,159.51,159.47,62.68]
[1762411963501,6.93953994,159.51,159.47,62.68]
[1762411963818,10.34206443,159.51,159.47,62.68]
[1762411964608,6.93953994,159.51,159.47,62.68]
[1762411964811,10.34206443,159.51,159.47,62.68]
[1762411966205,3.40252449,159.49,159.47,62.0]
[1762411966417,0.67,159.48,159.46,62.2]
[1762411966606,4.07252449,159.48,159.46,62.2]
[1762411966803,54.07252449,159.48,159.46,0.2]
[1762411967123,54.07252449,159.47,159.46,0.2]
[1762411968017,60.34329642,159.47,159.46,0.2]
[1762411969031,53.40252449,159.43,159.39,0.88]
[1762411969723,0.67,159.42,159.39,0.88]
[1762411969925,54.07252449,159.43,159.39,0.88]
[1762411970317,60.34495573,159.43,159.39,0.88]
[1762411970631,56.94243124,159.43,159.39,0.88]
[1762411972122,56.94243124,159.43,159.39,0.86]
[1762411972454,53.40252449,159.45,159.4,4.06252449]
[1762411972612,56.27156668,159.45,159.4,4.06252449]
[1762411972954,56.27156668,159.45,159.41,0.66]
[1762411972955,56.92156668,159.45,159.41,0.66]
[1762411973712,56.92156668,159.45,159.41,6.93311429]
[1762411973713,56.27156668,159.45,159.41,6.93311429]
[1762411974021,56.92156668,159.45,159.41,6.93310186]
[1762411974208,54.05252449,159.45,159.41,0.66]
[1762411974416,0.65,159.44,159.4,3.40252449]
[1762411974613,0.65,159.44,159.4,4.06252449]
[1762411975119,6.92201581,159.44,159.4,10.33602393]
[1762411975327,6.92201581,159.44,159.41,0.66]
[1762411976610,10.3245403,159.44,159.41,62.66]
[1762411976816,4.05252449,159.43,159.41,62.0]
[1762411977637,0.65,159.43,159.41,62.0]
[1762411978144,50.0,159.45,159.42,0.66]
[1762411978518,50.0,159.45,159.42,4.06252449]
[1762411978731,0.65,159.44,159.41,62.0]
[1762411979441,0.65,159.44,159.41,62.66]
[1762411979736,4.05252449,159.44,159.41,62.0]
[1762411979925,3.40252449,159.43,159.41,62.0]
[1762411980118,4.05252449,159.43,159.41,62.0]
[1762411980325,0.65,159.42,159.39,0.2]
[1762411980636,6.92278015,159.42,159.39,0.2]
[1762411980824,50.0,159.4,159.39,0.2]
[1762411981029,50.0,159.39,159.38,0.2]
[1762411981215,63.84135218,159.39,159.38,0.2]
[1762411981409,13.84135218,159.39,159.38,0.2]
[1762411981635,73.99452449,159.4,159.38,0.2]
[1762411981935,71.242,159.4,159.38,0.2]
[1762411982110,3.40252449,159.39,159.38,0.2]
[1762411982316,2.83114372,159.39,159.38,0.2]
[1762411982917,6.27391931,159.39,159.38,0.2]
[1762411984223,8.45506303,159.39,159.38,0.2]
[1762411984838,9.10506303,159.39,159.38,0.2]
[1762411985941,0.65,159.39,159.38,0.2]
[1762411986120,79.04671899,159.4,159.38,0.2]
[1762411986320,79.69671899,159.4,159.38,0.2]
[1762411987021,2.83114372,159.39,159.38,0.2]
[1762411987545,9.10506303,159.39,159.38,0.2]
[1762411988546,68.89389072,159.39,159.38,0.2]
[1762411988923,18.89389072,159.39,159.38,0.2]
[1762411989826,9.10506303,159.39,159.38,0.2]
[1762411990027,6.92391931,159.39,159.38,0.2]
[1762411990941,9.10506303,159.39,159.38,0.2]
[1762411992453,59.10506303,159.39,159.38,0.2]
[1762411994639,9.10506303,159.39,159.38,0.2]
[1762411996955,79.04676531,159.4,159.38,0.2]
[1762411997156,79.69676531,159.4,159.38,0.2]
[1762411999047,72.77314372,159.4,159.38,0.2]
[1762411999248,79.04671624,159.4,159.38,0.2]
[1762411999658,79.69671624,159.4,159.38,0.2]
[1762412000655,5.0747346,159.42,159.39,0.66]
[1762412000656,70.592,159.42,159.39,0.66]
[1762412000855,50.0,159.39,159.38,0.2]
[1762412001964,56.27391931,159.39,159.38,0.2]
[1762412002874,50.0,159.39,159.38,0.2]
[1762412005865,56.27391931,159.39,159.38,0.2]
[1762412007261,108.45506303,159.39,159.38,0.2]
[1762412007464,50.0,159.39,159.38,0.2]
[1762412007984,56.27391931,159.39,159.38,0.2]
[1762412008384,56.97391931,159.39,159.38,0.2]
[1762412008563,56.27391931,159.39,159.38,0.2]
[1762412010774,56.97391931,159.39,159.38,0.2]
[1762412012764,56.97391931,159.39,159.38,0.03]
[1762412013092,50.0,159.39,159.36,0.1485]
[1762412013295,50.0,159.39,159.35,8.44137571]
[1762412013484,50.0,159.41,159.38,2.18114372]
[1762412013663,50.0,159.43,159.39,2.18114372]
[1762412013863,50.0,159.43,159.41,2.18114372]
[1762412014188,50.0,159.43,159.4,2.18114372]
[1762412014575,2.88114372,159.42,159.39,62.0]
[1762412014786,0.7,159.42,159.39,62.0]
[1762412015870,58.45353047,159.43,159.39,62.69]
[1762412016281,59.13353047,159.43,159.39,62.69]
[1762412016683,59.13353047,159.43,159.39,62.0]
[1762412017684,50.0,159.43,159.4,0.69]
[1762412017886,50.0,159.43,159.4,2.87114372]
[1762412018679,50.0,159.43,159.4,0.69]
[1762412021084,76.86363513,159.45,159.4,9.14460382]
[1762412021280,2.86114372,159.44,159.4,0.69]
[1762412021480,2.18114372,159.43,159.4,0.69]
[1762412021690,2.18114372,159.43,159.39,68.27391171]
[1762412021898,2.86114372,159.43,159.39,68.96391171]
[1762412022494,9.13366372,159.43,159.39,68.96391171]
[1762412022694,9.13366372,159.43,159.39,62.69]
[1762412022995,2.18114372,159.42,159.39,62.69]
[1762412023301,9.13366372,159.43,159.39,62.69]
[1762412025091,0.68,159.42,159.39,62.0]
[1762412025296,2.86114372,159.42,159.39,62.0]
[1762412025683,52.18114372,159.43,159.39,62.69]
[1762412025884,52.86114372,159.43,159.39,62.69]
[1762412026192,52.86114372,159.43,159.39,62.0]
[1762412026392,2.86114372,159.42,159.39,62.0]
[1762412026589,2.18114372,159.42,159.39,62.69]
[1762412026993,8.45389537,159.42,159.39,62.69]
[1762412027295,9.13389537,159.42,159.39,62.0]
[1762412027601,8.45389537,159.42,159.39,62.69]
[1762412027903,9.13389537,159.42,159.39,62.0]
[1762412028814,0.68,159.41,159.39,62.0]
[1762412029878,8.45389537,159.42,159.39,62.0]
[1762412030101,108.45355643,159.43,159.39,62.69]
[1762412030288,59.13355643,159.43,159.39,62.69]
[1762412030485,0.68,159.42,159.39,62.0]
[1762412030699,9.13396025,159.42,159.39,62.0]
[1762412030889,0.68,159.42,159.39,62.0]
[1762412031281,0.68,159.42,159.39,62.69]
[1762412031678,0.68,159.42,159.39,62.0]
[1762412031880,9.13396597,159.42,159.39,62.0]
[1762412033378,2.87114372,159.41,159.39,62.0]
[1762412033582,0.69,159.41,159.39,62.0]
[1762412035294,0.69,159.41,159.37,68.96460944]
[1762412035496,0.69,159.41,159.38,0.71]
[1762412036008,8.45396597,159.42,159.38,0.71]
[1762412036183,9.14396597,159.42,159.38,0.71]
[1762412036894,0.69,159.41,159.38,0.71]
[1762412038006,50.0,159.43,159.38,68.98426078]
[1762412038216,50.0,159.47,159.42,2.18114372]
[1762412038809,50.69,159.47,159.43,0.71]
[1762412039394,56.96077272,159.47,159.43,0.71]
[1762412040087,2.18114372,159.45,159.4,0.71]
[1762412040289,2.18114372,159.45,159.4,2.89114372]
[1762412040487,2.87114372,159.44,159.39,70.45499394]
[1762412040907,2.87114372,159.44,159.4,0.71]
[1762412041495,2.87114372,159.44,159.4,6.98345347]
[1762412041885,0.69,159.44,159.4,6.98345347]
[1762412042194,0.69,159.44,159.4,8.45459719]
[1762412042395,2.87114372,159.44,159.4,6.98345347]
[1762412042809,0.69,159.44,159.4,6.98345347]
[1762412043404,2.18114372,159.42,159.39,62.0]
[1762412043599,2.18114372,159.4,159.38,62.0]
[1762412043995,2.87114372,159.41,159.38,62.0]
[1762412044410,4.09721958,159.41,159.38,62.0]
[1762412044706,50.0,159.42,159.38,62.71]
[1762412045215,54.09721958,159.42,159.38,62.71]
[1762412045401,54.09721958,159.42,159.38,68.98424435]
[1762412045995,56.27203325,159.44,159.39,0.71]
[1762412046201,59.67925283,159.44,159.39,4.11721958]
[1762412046503,3.40721958,159.4,159.37,62.0]
[1762412046901,4.09721958,159.4,159.37,62.0]
[1762412047107,3.40721958,159.39,159.37,62.0]
[1762412048507,0.69,159.4,159.37,62.0]
[1762412048711,3.40721958,159.41,159.37,62.71]
[1762412048917,3.40721958,159.4,159.37,62.0]
[1762412049309,3.40721958,159.39,159.37,62.0]
[1762412049628,50.0,159.42,159.38,0.71]
[1762412049996,50.0,159.42,159.38,62.71]
[1762412050202,30.9615839,159.43,159.38,62.71]
[1762412050397,23.99921958,159.43,159.39,0.71]
[1762412050603,20.592,159.43,159.39,0.71]
[1762412050826,21.282,159.43,159.39,0.71]
[1762412051360,24.68921958,159.43,159.39,0.71]
[1762412051632,4.09721958,159.42,159.38,62.0]
[1762412051837,3.40721958,159.42,159.38,62.71]
[1762412052130,3.40721958,159.42,159.38,68.98429205]
[1762412052315,4.09721958,159.42,159.38,68.98429205]
[1762412056126,23.99921958,159.43,159.39,0.71]
[1762412056318,24.68921958,159.43,159.39,0.71]
[1762412056722,21.282,159.43,159.39,6.98387607]
[1762412057122,27.55435354,159.43,159.39,6.98387607]
[1762412057320,0.69,159.43,159.39,6.98387607]
[1762412057606,50.0,159.44,159.4,0.71]
[1762412057806,56.9621064,159.44,159.4,0.71]
[1762412058003,0.69,159.43,159.39,6.27387607]
[1762412058225,0.69,159.43,159.39,6.98387607]
[1762412059016,10.36963212,159.43,159.39,0.71]
[1762412059618,4.09721958,159.42,159.38,62.0]
[1762412060117,0.69,159.41,159.38,62.0]
[1762412060832,0.69,159.41,159.38,68.27426318]
[1762412061343,0.69,159.41,159.38,62.0]
[1762412061824,4.09721958,159.41,159.38,62.0]
[1762412062225,0.69,159.41,159.38,62.0]
[1762412064251,4.09721958,159.41,159.38,62.0]
[1762412064955,0.69,159.41,159.38,62.0]
[1762412067350,50.69,159.44,159.39,4.07721958]
[1762412067557,54.09721958,159.44,159.39,62.67]
[1762412067737,3.40721958,159.42,159.39,62.0]
[1762412068124,4.09721958,159.41,159.39,62.0]
[1762412068550,0.69,159.4,159.39,62.0]
[1762412069045,50.0,159.39,159.33,6.37622754]
[1762412069251,3.40721958,159.37,159.33,7.04622754]
[1762412069651,10.37194386,159.37,159.33,7.04622754]
[1762412070962,0.69,159.36,159.33,0.1]
[1762412071141,10.37194386,159.37,159.33,7.04624265]
[1762412071540,0.69,159.36,159.33,62.77]
[1762412071856,0.69,159.37,159.33,69.04625262]
[1762412073429,10.37203955,159.37,159.33,69.04625262]
[1762412073645,10.37203955,159.37,159.33,62.1]
[1762412073929,4.09721958,159.37,159.33,69.0461361]
[1762412074634,0.69,159.37,159.33,69.0461361]
[1762412075039,56.27435933,159.38,159.34,0.67]
[1762412075251,56.96435933,159.38,159.34,0.67]
[1762412075752,0.69,159.37,159.34,6.27588714]
[1762412075935,0.69,159.37,159.33,71.78338232]
[1762412076137,0.69,159.37,159.33,72.45338232]
[1762412078057,80.94285347,159.4,159.35,3.40721958]
[1762412078358,77.53563389,159.4,159.35,3.40721958]
[1762412078554,76.86563389,159.4,159.35,4.06721958]
[1762412078745,0.67,159.39,159.35,4.06721958]
[1762412079956,76.86563389,159.4,159.36,6.9351004]
[1762412080253,71.262,159.4,159.36,6.9351004]
[1762412081056,0.67,159.39,159.36,6.2751004]
[1762412081455,0.67,159.39,159.35,6.27537541]
[1762412081629,4.07721958,159.39,159.35,6.27537541]
[1762412082057,0.67,159.38,159.35,6.27537541]
[1762412082235,4.07721958,159.38,159.35,62.0]
[1762412082447,54.07721958,159.38,159.35,62.0]
[1762412082638,0.67,159.37,159.35,62.0]
[1762412084060,54.07721958,159.38,159.35,62.0]
[1762412084758,53.40721958,159.38,159.35,62.0]
[1762412085056,0.67,159.37,159.35,62.0]
[1762412086049,0.67,159.39,159.35,68.93536915]
[1762412086358,0.67,159.39,159.36,3.40721958]
[1762412086549,0.67,159.39,159.35,72.34258873]
[1762412086958,0.67,159.39,159.35,71.68258873]
[1762412087665,56.27360315,159.4,159.35,71.68258873]
[1762412087833,3.40721958,159.41,159.36,4.06721958]
[1762412088038,0.67,159.4,159.36,66.06721958]
[1762412088946,0.67,159.4,159.37,4.06721958]
[1762412089252,0.67,159.4,159.37,65.40721958]
[1762412089464,0.67,159.4,159.37,62.0]
[1762412089846,6.94359987,159.4,159.37,62.0]
[1762412090456,0.67,159.4,159.37,62.0]
[1762412091762,6.94358784,159.4,159.37,62.0]
[1762412091967,0.67,159.39,159.37,62.0]
[1762412093971,0.67,159.39,159.36,68.2750657]
[1762412095351,56.27358784,159.4,159.36,68.9850657]
[1762412095552,56.95358784,159.4,159.36,68.9850657]
[1762412095967,56.27358784,159.4,159.36,68.9850657]
[1762412096267,0.68,159.39,159.36,68.2750657]
[1762412098177,3.40721958,159.41,159.36,71.68228528]
[1762412098467,0.68,159.41,159.37,4.11721958]
[1762412098849,0.68,159.41,159.37,66.11721958]
[1762412099169,0.68,159.41,159.37,65.40721958]
[1762412099664,70.592,159.42,159.38,4.11721958]
[1762412099852,71.272,159.42,159.38,4.11721958]
[1762412100054,71.272,159.42,159.39,0.71]
[1762412100567,109.67909039,159.45,159.39,10.39089092]
[1762412100775,123.77,159.57,159.44,3.40721958]
[1762412100776,50.68,159.48,159.44,3.40721958]
[1762412100958,6.27003151,159.49,159.45,3.40721958]
[1762412101273,50.0,159.45,159.39,6.27367134]
[1762412101456,3.40721958,159.44,159.39,10.39089092]
[1762412101858,4.08721958,159.44,159.4,0.71]
[1762412102061,0.68,159.44,159.4,0.71]
[1762412102453,0.68,159.44,159.41,6.27313217]
[1762412103275,53.40721958,159.45,159.41,6.98313217]
[1762412103570,54.08721958,159.45,159.41,6.98313217]
[1762412103775,50.68,159.47,159.42,0.71]
[1762412103948,54.08721958,159.47,159.42,4.11721958]
[1762412104662,50.0,159.47,159.42,10.38961074]
[1762412104862,50.0,159.47,159.43,0.71]
[1762412104863,50.68,159.47,159.43,0.71]
[1762412106074,50.0,159.47,159.42,10.38961074]
[1762412106247,50.68,159.47,159.43,3.40721958]
[1762412106447,50.68,159.47,159.43,2.17865874]
[1762412106667,56.27079562,159.47,159.43,2.17865874]
[1762412106866,0.68,159.46,159.43,2.17865874]
[1762412107675,0.68,159.46,159.42,68.98239116]
[1762412107879,0.68,159.46,159.42,71.1610499]
[1762412108870,52.17865874,159.45,159.42,62.0]
[1762412109265,0.68,159.44,159.42,62.0]
[1762412110880,50.0,159.47,159.43,2.88865874]
[1762412111086,50.0,159.47,159.44,2.17865874]
[1762412111402,0.68,159.46,159.42,71.16138155]
[1762412111564,0.68,159.46,159.43,0.71]
[1762412111767,0.68,159.46,159.43,2.88865874]
[1762412111967,0.68,159.46,159.42,70.45138155]
[1762412112171,52.17865874,159.45,159.42,62.0]
[1762412112483,2.17865874,159.44,159.42,62.0]
[1762412112663,2.85865874,159.44,159.42,62.0]
[1762412112863,0.68,159.43,159.42,62.0]
[1762412113159,0.68,159.43,159.39,68.27384597]
[1762412113362,0.68,159.43,159.39,71.16250471]
[1762412113567,56.95163576,159.45,159.4,2.88865874]
[1762412113783,56.27163576,159.45,159.4,2.88865874]
[1762412113976,0.68,159.44,159.4,2.88865874]
[1762412114387,20.592,159.44,159.41,2.88865874]
[1762412115088,50.68,159.47,159.43,2.17865874]
[1762412115386,50.68,159.47,159.43,64.17865874]
[1762412115573,56.95082658,159.47,159.43,62.71]
[1762412115983,50.68,159.47,159.43,62.71]
[1762412117581,50.68,159.47,159.43,68.98232351]
[1762412118790,50.68,159.47,159.43,70.45098225]
[1762412119085,50.0,159.47,159.44,0.71]
[1762412119493,50.68,159.47,159.43,62.0]
[1762412119692,50.68,159.47,159.43,71.16090517]
[1762412119990,0.68,159.49,159.44,2.88865874]
[1762412120695,2.85865874,159.49,159.44,0.71]
[1762412121400,0.68,159.48,159.44,0.71]
[1762412121906,2.85865874,159.48,159.43,68.27224643]
[1762412122069,0.68,159.48,159.43,71.16090517]
[1762412122271,0.68,159.48,159.44,0.66]
[1762412123292,0.68,159.48,159.44,68.93178857]
[1762412123493,0.72,159.49,159.45,0.66]
[1762412123694,18.95671874,159.51,159.45,2.83865874]
[1762412123995,18.95671874,159.51,159.46,0.66]
[1762412124287,52.89865874,159.5,159.45,64.17865874]
[1762412124671,0.72,159.49,159.45,64.83865874]
[1762412125691,0.72,159.49,159.45,71.11008105]
[1762412126181,0.72,159.49,159.45,68.93142231]
[1762412127690,6.99002796,159.49,159.45,62.66]
[1762412128386,6.27002796,159.49,159.45,62.0]